[Event "Live Chess"]
[Site "Chess.com"]
[Date "2023.05.21"]
[Round "-"]
[White "alanmike75"]
[Black "Biranidun"]
[Result "0-1"]
[WhiteElo "1554"]
[BlackElo "2639"]
[TimeControl "300"]
[EndTime "17:29:47 PDT"]
[Termination "Biranidun won by resignation"]

1. e4 {[%clk 0:04:54]} 1... c5 {[%clk 0:04:58.5]} 2. Nf3 {[%clk 0:04:52.3]} 2...
d6 {[%clk 0:04:57.8]} 3. Be2 {[%clk 0:04:51]} 3... Nf6 {[%clk 0:04:57.1]} 4. d3
{[%clk 0:04:49.5]} 4... g6 {[%clk 0:04:56.3]} 5. O-O {[%clk 0:04:48.3]} 5... Bg7
{[%clk 0:04:56]} 6. c4 {[%clk 0:04:47]} 6... O-O {[%clk 0:04:55.6]} 7. Nc3
{[%clk 0:04:46]} 7... Bg4 {[%clk 0:04:55.2]} 8. Be3 {[%clk 0:04:44]} 8... Nc6
{[%clk 0:04:54.1]} 9. Rc1 {[%clk 0:04:42.7]} 9... Nd7 {[%clk 0:04:53.6]} 10. b3
{[%clk 0:04:40.9]} 10... a6 {[%clk 0:04:52.7]} 11. Nd5 {[%clk 0:04:35.2]} 11...
b5 {[%clk 0:04:50.3]} 12. h3 {[%clk 0:04:30]} 12... Bxf3 {[%clk 0:04:49.2]} 13.
Bxf3 {[%clk 0:04:28.5]} 13... e6 {[%clk 0:04:48.9]} 14. Nf4 {[%clk 0:04:17.7]}
14... Nd4 {[%clk 0:04:47.9]} 15. Bxd4 {[%clk 0:04:15.5]} 15... Bxd4 {[%clk
0:04:46.5]} 16. Ne2 {[%clk 0:04:14.3]} 16... Bg7 {[%clk 0:04:45.3]} 17. d4
{[%clk 0:04:09.6]} 17... cxd4 {[%clk 0:04:44.1]} 18. Nxd4 {[%clk 0:04:08.4]}
18... bxc4 {[%clk 0:04:42.3]} 19. bxc4 {[%clk 0:04:02.8]} 19... Qc7 {[%clk
0:04:36.1]} 20. e5 {[%clk 0:03:55.3]} 20... dxe5 {[%clk 0:04:30.9]} 21. Bxa8
{[%clk 0:03:53.6]} 21... exd4 {[%clk 0:04:30.4]} 22. Bf3 {[%clk 0:03:49]} 22...
Nc5 {[%clk 0:04:29.7]} 23. Re1 {[%clk 0:03:44.3]} 23... d3 {[%clk 0:04:27.9]}
24. Rb1 {[%clk 0:03:24.2]} 24... Rd8 {[%clk 0:04:26.2]} 25. Qd2 {[%clk
0:03:20.2]} 25... h5 {[%clk 0:04:19.6]} 26. Red1 {[%clk 0:03:17.2]} 26... Kh7
{[%clk 0:04:18.6]} 27. Qb4 {[%clk 0:03:14]} 27... Bd4 {[%clk 0:04:11.4]} 28. Qb7
{[%clk 0:03:11]} 28... Nxb7 {[%clk 0:04:10.5]} 0-1

[Event "Live Chess"]
[Site "Chess.com"]
[Date "2023.05.21"]
[Round "-"]
[White "SupremeTactician"]
[Black "jimwad"]
[Result "1-0"]
[WhiteElo "2343"]
[BlackElo "1255"]
[TimeControl "300"]
[EndTime "17:29:51 PDT"]
[Termination "SupremeTactician won by resignation"]

1. e4 {[%clk 0:04:59.7]} 1... e5 {[%clk 0:04:57.6]} 2. Nf3 {[%clk 0:04:59]} 2...
Nc6 {[%clk 0:04:55.6]} 3. Nc3 {[%clk 0:04:58.9]} 3... Nf6 {[%clk 0:04:53.6]} 4.
Bb5 {[%clk 0:04:58.8]} 4... Bc5 {[%clk 0:04:51]} 5. O-O {[%clk 0:04:57]} 5... d6
{[%clk 0:04:49.3]} 6. d4 {[%clk 0:04:56.3]} 6... exd4 {[%clk 0:04:47.9]} 7. Nxd4
{[%clk 0:04:55.8]} 7... Bd7 {[%clk 0:04:43.5]} 8. Nxc6 {[%clk 0:04:54.6]} 8...
Bxc6 {[%clk 0:04:42.5]} 9. Bd3 {[%clk 0:04:54.5]} 9... O-O {[%clk 0:04:40.5]}
10. Bg5 {[%clk 0:04:53.2]} 10... h6 {[%clk 0:04:36.8]} 11. Bh4 {[%clk
0:04:51.4]} 11... g5 {[%clk 0:04:34.8]} 12. Bg3 {[%clk 0:04:50.7]} 12... Nh5
{[%clk 0:04:33.7]} 13. Nd5 {[%clk 0:04:48.9]} 13... Nxg3 {[%clk 0:04:31]} 14.
hxg3 {[%clk 0:04:48.1]} 14... Bxd5 {[%clk 0:04:29.8]} 15. exd5 {[%clk 0:04:48]}
15... f5 {[%clk 0:04:22.1]} 16. c3 {[%clk 0:04:46.3]} 16... Qf6 {[%clk
0:04:18.5]} 17. b4 {[%clk 0:04:43.8]} 17... Bb6 {[%clk 0:04:16.9]} 18. Rc1
{[%clk 0:04:43.6]} 18... c6 {[%clk 0:04:14.4]} 19. dxc6 {[%clk 0:04:42.5]} 19...
bxc6 {[%clk 0:04:13.4]} 20. a4 {[%clk 0:04:41.9]} 20... d5 {[%clk 0:04:11.3]}
21. c4 {[%clk 0:04:40.3]} 21... Rad8 {[%clk 0:04:04.9]} 22. cxd5 {[%clk
0:04:38.4]} 22... Rxd5 {[%clk 0:04:03.7]} 23. Bc4 {[%clk 0:04:37.4]} 23... Rd8
{[%clk 0:03:57.1]} 24. a5 {[%clk 0:04:36.2]} 24... Bc7 {[%clk 0:03:51]} 25. Qb3
{[%clk 0:04:34.2]} 25... Kg7 {[%clk 0:03:49.5]} 26. Bxd5 {[%clk 0:04:33.6]}
26... cxd5 {[%clk 0:03:47]} 27. Rxc7+ {[%clk 0:04:32]} 27... Kg6 {[%clk
0:03:43.2]} 28. b5 {[%clk 0:04:30.4]} 28... f4 {[%clk 0:03:30.4]} 29. Rc6 {[%clk
0:04:24.8]} 29... Rb8 {[%clk 0:03:25.1]} 30. Rxf6+ {[%clk 0:04:23.7]} 1-0

[Event "Live Chess"]
[Site "Chess.com"]
[Date "2023.05.21"]
[Round "-"]
[White "grillage"]
[Black "Conradical12"]
[Result "0-1"]
[WhiteElo "1802"]
[BlackElo "1627"]
[TimeControl "300"]
[EndTime "17:30:53 PDT"]
[Termination "Conradical12 won by resignation"]

1. d4 {[%clk 0:04:59.3]} 1... d5 {[%clk 0:04:57.8]} 2. Nf3 {[%clk 0:04:57.2]}
2... c5 {[%clk 0:04:56.5]} 3. c4 {[%clk 0:04:54.4]} 3... Nf6 {[%clk 0:04:53.5]}
4. cxd5 {[%clk 0:04:52.8]} 4... Qxd5 {[%clk 0:04:50.4]} 5. Nc3 {[%clk
0:04:48.7]} 5... Qd8 {[%clk 0:04:47.1]} 6. d5 {[%clk 0:04:36.8]} 6... e6 {[%clk
0:04:45.2]} 7. e4 {[%clk 0:04:34.9]} 7... exd5 {[%clk 0:04:37.5]} 8. exd5 {[%clk
0:04:27.7]} 8... Be7 {[%clk 0:04:35.8]} 9. Be2 {[%clk 0:04:16]} 9... O-O {[%clk
0:04:32.3]} 10. O-O {[%clk 0:04:15.4]} 10... Bd6 {[%clk 0:04:30.2]} 11. Bg5
{[%clk 0:04:10.8]} 11... Bf5 {[%clk 0:04:24.9]} 12. Re1 {[%clk 0:04:00.7]} 12...
Bc7 {[%clk 0:04:23.2]} 13. Bd3 {[%clk 0:03:43.8]} 13... Bg4 {[%clk 0:04:16.6]}
14. h3 {[%clk 0:03:32.2]} 14... Bh5 {[%clk 0:04:14.8]} 15. Be4 {[%clk
0:03:10.5]} 15... Qd6 {[%clk 0:04:09.9]} 16. Nb5 {[%clk 0:03:06.6]} 16... Bxf3
{[%clk 0:04:07.1]} 17. Nxd6 {[%clk 0:02:58.1]} 17... Bxd1 {[%clk 0:04:05.5]} 18.
Nb5 {[%clk 0:02:43.6]} 18... Nxe4 {[%clk 0:03:55.1]} 19. Rxe4 {[%clk 0:02:28.5]}
19... Bc2 {[%clk 0:03:41.4]} 20. Rc4 {[%clk 0:02:23.6]} 20... Bd3 {[%clk
0:03:39.8]} 21. Nxc7 {[%clk 0:02:20.5]} 21... Bxc4 {[%clk 0:03:38]} 22. Nxa8
{[%clk 0:02:19.8]} 22... Na6 {[%clk 0:03:34.8]} 23. d6 {[%clk 0:01:49.6]} 23...
Rxa8 {[%clk 0:03:32.4]} 24. Rd1 {[%clk 0:01:47.1]} 24... f6 {[%clk 0:03:30.7]}
25. d7 {[%clk 0:01:42.9]} 25... Rd8 {[%clk 0:03:27.6]} 26. Bf4 {[%clk 0:01:39]}
26... Bxa2 {[%clk 0:03:21.4]} 27. g4 {[%clk 0:01:24.4]} 27... Be6 {[%clk
0:03:17.5]} 28. Rd6 {[%clk 0:00:56.4]} 28... Kf7 {[%clk 0:03:07.3]} 29. g5
{[%clk 0:00:50.1]} 29... fxg5 {[%clk 0:03:00.2]} 30. Bxg5 {[%clk 0:00:48.9]}
30... Rxd7 {[%clk 0:02:58.9]} 0-1

[Event "Live Chess"]
[Site "Chess.com"]
[Date "2023.05.21"]
[Round "-"]
[White "CheckThis4"]
[Black "GEMdzq"]
[Result "0-1"]
[WhiteElo "2510"]
[BlackElo "2288"]
[TimeControl "300"]
[EndTime "17:30:55 PDT"]
[Termination "GEMdzq won by resignation"]

1. d4 {[%clk 0:04:58.4]} 1... Nf6 {[%clk 0:04:58.6]} 2. Nc3 {[%clk 0:04:57.3]}
2... e6 {[%clk 0:04:57.4]} 3. e4 {[%clk 0:04:56.2]} 3... c5 {[%clk 0:04:52.2]}
4. d5 {[%clk 0:04:54.9]} 4... d6 {[%clk 0:04:48.3]} 5. Bb5+ {[%clk 0:04:51.3]}
5... Bd7 {[%clk 0:04:46.2]} 6. dxe6 {[%clk 0:04:50.2]} 6... fxe6 {[%clk
0:04:43.4]} 7. e5 {[%clk 0:04:49]} 7... Bxb5 {[%clk 0:04:34.5]} 8. exf6 {[%clk
0:04:41.1]} 8... Bc6 {[%clk 0:04:32]} 9. fxg7 {[%clk 0:04:24]} 9... Bxg7 {[%clk
0:04:31.9]} 10. Qh5+ {[%clk 0:04:20.1]} 10... Kd7 {[%clk 0:04:23.7]} 11. Nf3
{[%clk 0:04:15.2]} 11... Rf8 {[%clk 0:04:10]} 12. Qxh7 {[%clk 0:04:11.1]} 12...
Qe7 {[%clk 0:04:02.2]} 13. Bg5 {[%clk 0:04:08.3]} 13... Bxc3+ {[%clk 0:04:00.3]}
0-1

[Event "Live Chess"]
[Site "Chess.com"]
[Date "2023.05.21"]
[Round "-"]
[White "KGreenGator"]
[Black "chessfiction"]
[Result "0-1"]
[WhiteElo "1784"]
[BlackElo "2346"]
[TimeControl "300"]
[EndTime "17:30:59 PDT"]
[Termination "chessfiction won by checkmate"]

1. c4 {[%clk 0:04:58.7]} 1... d5 {[%clk 0:04:58.4]} 2. cxd5 {[%clk 0:04:57.2]}
2... c6 {[%clk 0:04:57.8]} 3. dxc6 {[%clk 0:04:55.7]} 3... e5 {[%clk 0:04:57.3]}
4. cxb7 {[%clk 0:04:54.4]} 4... Bxb7 {[%clk 0:04:57.2]} 5. Qb3 {[%clk
0:04:49.1]} 5... Qc7 {[%clk 0:04:55.1]} 6. Nc3 {[%clk 0:04:44.7]} 6... Nc6
{[%clk 0:04:53.8]} 7. e3 {[%clk 0:04:41.7]} 7... Nf6 {[%clk 0:04:50.3]} 8. Bc4
{[%clk 0:04:37.2]} 8... Na5 {[%clk 0:04:47.1]} 9. Qa4+ {[%clk 0:04:33.4]} 9...
Bc6 {[%clk 0:04:45.8]} 10. Bb5 {[%clk 0:04:32.3]} 10... Rc8 {[%clk 0:04:41.7]}
11. Bxc6+ {[%clk 0:04:30.9]} 11... Nxc6 {[%clk 0:04:41.6]} 12. Nge2 {[%clk
0:04:24]} 12... Bd6 {[%clk 0:04:40.6]} 13. O-O {[%clk 0:04:21.8]} 13... O-O
{[%clk 0:04:39.7]} 14. d4 {[%clk 0:04:17]} 14... exd4 {[%clk 0:04:38.6]} 15.
Nxd4 {[%clk 0:04:14.5]} 15... Bxh2+ {[%clk 0:04:37.3]} 16. Kh1 {[%clk
0:04:13.7]} 16... Nxd4 {[%clk 0:04:36.5]} 17. Qxd4 {[%clk 0:04:11.3]} 17... Be5
{[%clk 0:04:34.5]} 18. Qd3 {[%clk 0:04:04.6]} 18... Bxc3 {[%clk 0:04:32.5]} 19.
bxc3 {[%clk 0:04:03.9]} 19... Qxc3 {[%clk 0:04:32]} 20. Qxc3 {[%clk 0:04:02.5]}
20... Rxc3 {[%clk 0:04:31.9]} 21. Bb2 {[%clk 0:04:01.7]} 21... Rc2 {[%clk
0:04:30.5]} 22. Bd4 {[%clk 0:04:00.2]} 22... Ne4 {[%clk 0:04:27.1]} 23. Kg1
{[%clk 0:03:56.6]} 23... Rb8 {[%clk 0:04:23.8]} 24. f3 {[%clk 0:03:53.2]} 24...
Ng3 {[%clk 0:04:21.6]} 25. Rfe1 {[%clk 0:03:46.5]} 25... Nf5 {[%clk 0:04:08.4]}
26. Be5 {[%clk 0:03:38.1]} 26... Rbc8 {[%clk 0:03:54.1]} 27. a4 {[%clk
0:03:29.7]} 27... Nh4 {[%clk 0:03:48]} 28. Bd4 {[%clk 0:03:21.3]} 28... Rxg2+
{[%clk 0:03:43.8]} 29. Kh1 {[%clk 0:03:20]} 29... Rcc2 {[%clk 0:03:40.8]} 30.
Rec1 {[%clk 0:03:15.4]} 30... Rh2+ {[%clk 0:03:38.5]} 31. Kg1 {[%clk 0:03:13.8]}
31... Nxf3+ {[%clk 0:03:37.2]} 32. Kf1 {[%clk 0:03:12.2]} 32... Rcf2# {[%clk
0:03:36.2]} 0-1

[Event "Live Chess"]
[Site "Chess.com"]
[Date "2023.05.21"]
[Round "-"]
[White "CeladonFish"]
[Black "peter-785"]
[Result "0-1"]
[WhiteElo "1098"]
[BlackElo "1200"]
[TimeControl "300"]
[EndTime "17:31:14 PDT"]
[Termination "peter-785 won by checkmate"]

1. d4 {[%clk 0:04:59.4]} 1... d5 {[%clk 0:04:57.6]} 2. c4 {[%clk 0:04:58.5]}
2... c6 {[%clk 0:04:56.5]} 3. Nc3 {[%clk 0:04:57.6]} 3... e6 {[%clk 0:04:55.3]}
4. Bf4 {[%clk 0:04:56.9]} 4... Nf6 {[%clk 0:04:54.5]} 5. Nf3 {[%clk 0:04:54.5]}
5... Be7 {[%clk 0:04:50.8]} 6. cxd5 {[%clk 0:04:49.7]} 6... cxd5 {[%clk
0:04:49.5]} 7. Qa4+ {[%clk 0:04:45.9]} 7... Bd7 {[%clk 0:04:41.5]} 8. Qb3 {[%clk
0:04:44.1]} 8... Bc6 {[%clk 0:04:24.9]} 9. Nb5 {[%clk 0:04:39]} 9... a6 {[%clk
0:04:16.7]} 10. Nc7+ {[%clk 0:04:35.6]} 10... Kf8 {[%clk 0:04:11.2]} 11. Nxa8
{[%clk 0:04:33.4]} 11... b5 {[%clk 0:04:04.8]} 12. Nc7 {[%clk 0:04:30]} 12...
Bd6 {[%clk 0:03:56.4]} 13. Bxd6+ {[%clk 0:04:28.2]} 13... Qxd6 {[%clk
0:03:55.7]} 14. Nxa6 {[%clk 0:04:15.3]} 14... Nxa6 {[%clk 0:03:53.2]} 15. e3
{[%clk 0:04:06.8]} 15... Qb4+ {[%clk 0:03:17.6]} 16. Qxb4+ {[%clk 0:04:04.2]}
16... Nxb4 {[%clk 0:03:17.2]} 17. Kd2 {[%clk 0:03:54.4]} 17... Ne4+ {[%clk
0:02:57]} 18. Ke2 {[%clk 0:03:42.1]} 18... f6 {[%clk 0:02:38.9]} 19. a3 {[%clk
0:03:40.3]} 19... Na6 {[%clk 0:02:24.2]} 20. Rc1 {[%clk 0:03:35.1]} 20... Bd7
{[%clk 0:02:16.3]} 21. Nd2 {[%clk 0:03:29.5]} 21... Nd6 {[%clk 0:02:08.6]} 22.
Kf3 {[%clk 0:03:26]} 22... Ke7 {[%clk 0:02:07.5]} 23. a4 {[%clk 0:03:19]} 23...
b4 {[%clk 0:02:05.1]} 24. Bxa6 {[%clk 0:03:16.2]} 24... Nf5 {[%clk 0:01:14.1]}
25. Bb5 {[%clk 0:03:07.8]} 25... Nh4+ {[%clk 0:00:44.8]} 26. Kg3 {[%clk
0:03:04.7]} 26... Nf5+ {[%clk 0:00:43.5]} 27. Kh3 {[%clk 0:02:59.1]} 27... g5
{[%clk 0:00:33.9]} 28. Bxd7 {[%clk 0:02:56.1]} 28... Kxd7 {[%clk 0:00:32.9]} 29.
a5 {[%clk 0:02:54.2]} 29... h5 {[%clk 0:00:28.5]} 30. a6 {[%clk 0:02:52]} 30...
g4# {[%clk 0:00:27.4]} 0-1

[Event "Live Chess"]
[Site "Chess.com"]
[Date "2023.05.21"]
[Round "-"]
[White "luckywookie"]
[Black "gmnorfolk"]
[Result "0-1"]
[WhiteElo "766"]
[BlackElo "2118"]
[TimeControl "300"]
[EndTime "17:31:16 PDT"]
[Termination "gmnorfolk won on time"]

1. e4 {[%clk 0:04:55.4]} 1... c5 {[%clk 0:04:57.6]} 2. c3 {[%clk 0:04:53.9]}
2... e6 {[%clk 0:04:55.1]} 3. d4 {[%clk 0:04:51.6]} 3... d5 {[%clk 0:04:51.1]}
4. exd5 {[%clk 0:04:50.7]} 4... exd5 {[%clk 0:04:45.7]} 5. Bb5+ {[%clk
0:04:47.1]} 5... Nc6 {[%clk 0:04:42.4]} 6. Nf3 {[%clk 0:04:43.8]} 6... Qe7+
{[%clk 0:04:33.8]} 7. Be3 {[%clk 0:04:41.3]} 7... Nf6 {[%clk 0:04:29.4]} 8. O-O
{[%clk 0:04:34.9]} 8... a6 {[%clk 0:04:24.9]} 9. Bxc6+ {[%clk 0:04:27.6]} 9...
bxc6 {[%clk 0:04:11.6]} 10. Re1 {[%clk 0:04:23.2]} 10... Be6 {[%clk 0:04:08.9]}
11. Ng5 {[%clk 0:04:17.6]} 11... Qd7 {[%clk 0:04:07.5]} 12. Nxe6 {[%clk
0:04:00.9]} 12... fxe6 {[%clk 0:04:04.9]} 13. Nd2 {[%clk 0:04:00.3]} 13... cxd4
{[%clk 0:04:01.4]} 14. cxd4 {[%clk 0:03:56.4]} 14... Bd6 {[%clk 0:04:00]} 15.
Nf3 {[%clk 0:03:52.1]} 15... O-O {[%clk 0:03:58.9]} 16. Ne5 {[%clk 0:03:48.6]}
16... Qc7 {[%clk 0:03:52.8]} 17. Rc1 {[%clk 0:03:46]} 17... c5 {[%clk
0:03:50.5]} 18. dxc5 {[%clk 0:03:28.1]} 18... Bxe5 {[%clk 0:03:48.6]} 19. Bd4
{[%clk 0:03:13.7]} 19... Bxd4 {[%clk 0:03:45.1]} 20. Qxd4 {[%clk 0:03:12.1]}
20... Qc6 {[%clk 0:03:38.9]} 21. f3 {[%clk 0:02:54.1]} 21... Rae8 {[%clk
0:03:33.6]} 22. Re5 {[%clk 0:02:44.1]} 22... Nd7 {[%clk 0:03:31]} 23. Rg5 {[%clk
0:02:28.5]} 23... e5 {[%clk 0:03:27.4]} 24. Qc3 {[%clk 0:02:01.7]} 24... d4
{[%clk 0:03:20.7]} 25. Qc4+ {[%clk 0:01:59.2]} 25... Kh8 {[%clk 0:03:18.6]} 26.
b4 {[%clk 0:01:40.1]} 26... h6 {[%clk 0:03:08.6]} 27. Rh5 {[%clk 0:01:29.6]}
27... Nf6 {[%clk 0:03:06.4]} 28. Rf5 {[%clk 0:01:21.5]} 28... Qc8 {[%clk
0:03:00.1]} 29. g4 {[%clk 0:01:18.5]} 29... e4 {[%clk 0:02:56]} 30. Qxd4 {[%clk
0:01:09.7]} 30... exf3 {[%clk 0:02:53.6]} 31. Rxf3 {[%clk 0:00:55.4]} 31... Re4
{[%clk 0:02:49.4]} 32. Qd3 {[%clk 0:00:41.1]} 32... Rxg4+ {[%clk 0:02:43.7]} 33.
Kf1 {[%clk 0:00:32.5]} 33... Qc6 {[%clk 0:02:26.3]} 34. h3 {[%clk 0:00:19.4]}
34... Rxb4 {[%clk 0:02:22.4]} 35. Rc4 {[%clk 0:00:12.9]} 35... Rxc4 {[%clk
0:02:20.4]} 36. Qxc4 {[%clk 0:00:12.1]} 36... Qxf3+ {[%clk 0:02:19.6]} 37. Ke1
{[%clk 0:00:10.4]} 37... Re8+ {[%clk 0:02:16]} 38. Kd2 {[%clk 0:00:08.4]} 38...
Ne4+ {[%clk 0:02:10.6]} 39. Kc2 {[%clk 0:00:04.9]} 39... Nxc5 {[%clk 0:01:58.2]}
40. Qxc5 {[%clk 0:00:01.6]} 40... Re2+ {[%clk 0:01:56.6]} 0-1

[Event "Live Chess"]
[Site "Chess.com"]
[Date "2023.05.21"]
[Round "-"]
[White "wot-not"]
[Black "Baturin_Yevgeniy"]
[Result "0-1"]
[WhiteElo "1541"]
[BlackElo "1803"]
[TimeControl "300"]
[EndTime "17:31:32 PDT"]
[Termination "Baturin_Yevgeniy won by checkmate"]

1. e4 {[%clk 0:04:58.6]} 1... e6 {[%clk 0:04:56.8]} 2. f4 {[%clk 0:04:57.4]}
2... d5 {[%clk 0:04:55.6]} 3. e5 {[%clk 0:04:55.8]} 3... c5 {[%clk 0:04:53.4]}
4. Nf3 {[%clk 0:04:55.2]} 4... Nc6 {[%clk 0:04:50.7]} 5. d4 {[%clk 0:04:53]}
5... cxd4 {[%clk 0:04:47.5]} 6. Bd3 {[%clk 0:04:52.1]} 6... Qa5+ {[%clk
0:04:38.4]} 7. Nbd2 {[%clk 0:04:46]} 7... Nh6 {[%clk 0:04:08.8]} 8. O-O {[%clk
0:04:40.7]} 8... Ng4 {[%clk 0:04:05.8]} 9. Nb3 {[%clk 0:04:38.1]} 9... Qb6
{[%clk 0:04:02.2]} 10. h3 {[%clk 0:04:36.4]} 10... Ne3 {[%clk 0:03:56.8]} 11.
Bxe3 {[%clk 0:04:35.5]} 11... dxe3 {[%clk 0:03:56.5]} 12. Kh1 {[%clk 0:04:35.1]}
12... a5 {[%clk 0:03:48.1]} 13. c3 {[%clk 0:04:27.3]} 13... a4 {[%clk
0:03:44.6]} 14. Nc1 {[%clk 0:04:26.5]} 14... Qxb2 {[%clk 0:03:41.3]} 15. Ne2
{[%clk 0:04:20.4]} 15... Bc5 {[%clk 0:02:31.4]} 16. Ng5 {[%clk 0:03:59.3]} 16...
h6 {[%clk 0:01:52.9]} 17. Nf3 {[%clk 0:03:56.1]} 17... a3 {[%clk 0:01:41.8]} 18.
Qe1 {[%clk 0:03:06.6]} 18... Bd7 {[%clk 0:01:27.4]} 19. Qg3 {[%clk 0:03:02]}
19... g6 {[%clk 0:01:23.1]} 20. Qh4 {[%clk 0:02:44.6]} 20... Qb6 {[%clk
0:01:19.6]} 21. Rab1 {[%clk 0:02:36.3]} 21... Qd8 {[%clk 0:01:16.2]} 22. Qe1
{[%clk 0:02:32.4]} 22... b6 {[%clk 0:01:08.3]} 23. Rb3 {[%clk 0:02:22.6]} 23...
Na5 {[%clk 0:01:06.5]} 24. Rb1 {[%clk 0:02:15.4]} 24... Nc4 {[%clk 0:01:05.3]}
25. Bxc4 {[%clk 0:02:13.9]} 25... dxc4 {[%clk 0:01:03.4]} 26. Qc1 {[%clk
0:01:56.9]} 26... O-O {[%clk 0:00:58.4]} 27. Rd1 {[%clk 0:01:56]} 27... Qc7
{[%clk 0:00:55.5]} 28. Nfd4 {[%clk 0:01:49.2]} 28... Ba4 {[%clk 0:00:51.9]} 29.
Re1 {[%clk 0:01:41.9]} 29... b5 {[%clk 0:00:50.6]} 30. Nxb5 {[%clk 0:01:33.9]}
30... Bxb5 {[%clk 0:00:50.5]} 31. Rxb5 {[%clk 0:01:32.3]} 31... Rfb8 {[%clk
0:00:50.4]} 32. Rxb8+ {[%clk 0:01:30.8]} 32... Rxb8 {[%clk 0:00:50]} 33. Nd4
{[%clk 0:01:27.2]} 33... Rb2 {[%clk 0:00:48.1]} 34. Re2 {[%clk 0:01:16.1]} 34...
Bxd4 {[%clk 0:00:44.2]} 35. Rxb2 {[%clk 0:01:13.6]} 35... axb2 {[%clk
0:00:42.8]} 36. Qxb2 {[%clk 0:01:12.8]} 36... Bc5 {[%clk 0:00:38.4]} 37. a4
{[%clk 0:01:03.3]} 37... Qb6 {[%clk 0:00:37.1]} 38. Qe2 {[%clk 0:01:01]} 38...
Qb1+ {[%clk 0:00:34.9]} 39. Kh2 {[%clk 0:00:59.2]} 39... Qb3 {[%clk 0:00:32.3]}
40. Qe1 {[%clk 0:00:53.8]} 40... Qxa4 {[%clk 0:00:31]} 41. h4 {[%clk 0:00:52.6]}
41... Qb3 {[%clk 0:00:30.1]} 42. Kh3 {[%clk 0:00:51.7]} 42... Qc2 {[%clk
0:00:29.6]} 43. g3 {[%clk 0:00:50.7]} 43... Qd2 {[%clk 0:00:28.3]} 44. Qa1
{[%clk 0:00:48.7]} 44... e2 {[%clk 0:00:26.3]} 45. Qa8+ {[%clk 0:00:45.9]} 45...
Kg7 {[%clk 0:00:25.9]} 46. Qc6 {[%clk 0:00:36.7]} 46... e1=Q {[%clk 0:00:21.5]}
47. Qxc5 {[%clk 0:00:36.1]} 47... Qh1+ {[%clk 0:00:17.4]} 48. Kg4 {[%clk
0:00:35.3]} 48... Qe2# {[%clk 0:00:15.6]} 0-1